{"text_format":"1","workbook":"xlsx","n_sheets":3,"sheets":["Cambiar","Divisas","Currency"],"not_rendered":{"charts":0,"images":0,"macros":1,"external_links":0,"defined_names":17,"comments":0,"pivot_tables":2},"unopened":[],"bounds":{"document_bytes":16777216,"sheet_cells":100000,"rows_first":2000,"rows_last":500,"rows_between":2000,"halvings":0,"cell_chars":16384,"cell_head_chars":4096},"cells_cut":0,"cells_raw":0,"read":"whole","date_system":"1900"}

{"sheet":"Cambiar","index":0,"n_rows":259,"n_cols":8,"rows_kept":259,"cut":false,"hidden":false,"merged":[]}
["Cambio","Precio","Cantidad","Divisa","Valor","Divisa"]
[{"$error":"#VALUE!"},{"$f":"_FV(A2,\"Precio\")","v":3.1649999999999998E-2},1,{"$f":"IFERROR(INDEX(Divisas[Divisa],MATCH(LEFT($H2,3),Divisas[Código],0)),\"\")","v":"Grivnia"},{"$f":"IFERROR($C2*IF(LEFT($H2,3)=RIGHT($H2,3),1,$B2),\"\")","v":3.1649999999999998E-2},{"$f":"IFERROR(INDEX(Divisas[Divisa],MATCH(RIGHT($H2,3),Divisas[Código],0)),\"\")","v":"Euro"},{"$f":"IFERROR(INDEX(Divisas[Unidades],MATCH(LEFT($H2,3),Divisas[Código],0)),2)","v":2},{"$f":"_FV(A2,\"Símbolo bursátil\",TRUE)","v":"UAHEUR"}]
[{"$error":"#VALUE!"},{"$f":"_FV(A3,\"Precio\")","v":31.274100000000001},1,{"$f":"IFERROR(INDEX(Divisas[Divisa],MATCH(LEFT($H3,3),Divisas[Código],0)),\"\")","v":"Euro"},{"$f":"IFERROR($C3*IF(LEFT($H3,3)=RIGHT($H3,3),1,$B3),\"\")","v":31.274100000000001},{"$f":"IFERROR(INDEX(Divisas[Divisa],MATCH(RIGHT($H3,3),Divisas[Código],0)),\"\")","v":"Grivnia"},{"$f":"IFERROR(INDEX(Divisas[Unidades],MATCH(LEFT($H3,3),Divisas[Código],0)),2)","v":2},{"$f":"_FV(A3,\"Símbolo bursátil\",TRUE)","v":"EURUAH"}]
[]
["País","Código",null,"País","Código","💱"]
["UKRANIA","UAH","🪙","ESPAÑA","EUR","#ExcelPedroWave"]
["Países",{"$f":"_xlfn._xlws.SORT(_xlfn.UNIQUE(_xlfn._xlws.FILTER(Divisas[Código],Divisas[País]=A$6)))","v":"UAH"},null,"Países",{"$f":"_xlfn._xlws.SORT(_xlfn.UNIQUE(_xlfn._xlws.FILTER(Divisas[Código],Divisas[País]=D$6)))","v":"EUR"}]
["AFGANISTÁN",null,null,"AFGANISTÁN"]
["ALBANIA",null,null,"ALBANIA"]
["ALEMANIA",null,null,"ALEMANIA"]
["ALGERIA",null,null,"ALGERIA"]
["ANDORRA",null,null,"ANDORRA"]
["ANGOLA",null,null,"ANGOLA"]
["ANGUILLA",null,null,"ANGUILLA"]
["ANTÁRTICA",null,null,"ANTÁRTICA"]
["ANTIGUA Y BARBUDA",null,null,"ANTIGUA Y BARBUDA"]
["ARABIA SAUDITA",null,null,"ARABIA SAUDITA"]
["ARGENTINA",null,null,"ARGENTINA"]
["ARMENIA",null,null,"ARMENIA"]
["ARUBA",null,null,"ARUBA"]
["AUSTRALIA",null,null,"AUSTRALIA"]
["AUSTRIA",null,null,"AUSTRIA"]
["AZERBAIYÁN",null,null,"AZERBAIYÁN"]
["BAHAMAS (LAS)",null,null,"BAHAMAS (LAS)"]
["BANGLADESH",null,null,"BANGLADESH"]
["BARBADOS",null,null,"BARBADOS"]
["BARÉIN",null,null,"BARÉIN"]
["BÉLGICA",null,null,"BÉLGICA"]
["BELICE",null,null,"BELICE"]
["BENÍN",null,null,"BENÍN"]
["BERMUDA",null,null,"BERMUDA"]
["BIELORRUSIA",null,null,"BIELORRUSIA"]
["BIRMANIA",null,null,"BIRMANIA"]
["BOLIVIA (ESTADO PLURINACIONAL DE)",null,null,"BOLIVIA (ESTADO PLURINACIONAL DE)"]
["BONAIRE, SAN EUSTAQUIO Y SABA",null,null,"BONAIRE, SAN EUSTAQUIO Y SABA"]
["BOSNIA Y HERZEGOVINA",null,null,"BOSNIA Y HERZEGOVINA"]
["BOTSUANA",null,null,"BOTSUANA"]
["BRASIL",null,null,"BRASIL"]
["BRUNÉI DARUSSALAM",null,null,"BRUNÉI DARUSSALAM"]
["BULGARIA",null,null,"BULGARIA"]
["BURKINA FASO",null,null,"BURKINA FASO"]
["BURUNDI",null,null,"BURUNDI"]
["BUTÁN",null,null,"BUTÁN"]
["CABO VERDE",null,null,"CABO VERDE"]
["CAMBOYA",null,null,"CAMBOYA"]
["CAMERÚN",null,null,"CAMERÚN"]
["CANADÁ",null,null,"CANADÁ"]
["CHAD",null,null,"CHAD"]
["CHILE",null,null,"CHILE"]
["CHINA",null,null,"CHINA"]
["CHIPRE",null,null,"CHIPRE"]
["COLOMBIA",null,null,"COLOMBIA"]
["COMORAS",null,null,"COMORAS"]
["CONGO (EL)",null,null,"CONGO (EL)"]
["CONGO (REPÚBLICA DEMOCRÁTIC DEL)",null,null,"CONGO (REPÚBLICA DEMOCRÁTIC DEL)"]
["COSTA DE MARFIL",null,null,"COSTA DE MARFIL"]
["COSTA RICA",null,null,"COSTA RICA"]
["CROACIA",null,null,"CROACIA"]
["CUBA",null,null,"CUBA"]
["CURAZAO",null,null,"CURAZAO"]
["DINAMARCA",null,null,"DINAMARCA"]
["DOMINICA",null,null,"DOMINICA"]
["ECUADOR",null,null,"ECUADOR"]
["EGIPTO",null,null,"EGIPTO"]
["EL SALVADOR",null,null,"EL SALVADOR"]
["EMIRATOS ÁRABES UNIDOS",null,null,"EMIRATOS ÁRABES UNIDOS"]
["ERITREA",null,null,"ERITREA"]
["ESLOVAQUIA",null,null,"ESLOVAQUIA"]
["ESLOVENIA",null,null,"ESLOVENIA"]
["ESPAÑA",null,null,"ESPAÑA"]
["ESTADO DE PALESTINA",null,null,"ESTADO DE PALESTINA"]
["ESTADOS UNIDOS DE AMÉRICA",null,null,"ESTADOS UNIDOS DE AMÉRICA"]
["ESTONIA",null,null,"ESTONIA"]
["ETIOPÍA",null,null,"ETIOPÍA"]
["FIJI",null,null,"FIJI"]
["FILIPINAS",null,null,"FILIPINAS"]
["FINLANDIA",null,null,"FINLANDIA"]
["FONDO MONETARIO INTERNACIONAL",null,null,"FONDO MONETARIO INTERNACIONAL"]
["FRANCIA",null,null,"FRANCIA"]
["GABÓN",null,null,"GABÓN"]
["GAMBIA",null,null,"GAMBIA"]
["GEORGIA",null,null,"GEORGIA"]
["GHANA",null,null,"GHANA"]
["GIBRALTAR",null,null,"GIBRALTAR"]
["GRANADA",null,null,"GRANADA"]
["GRECIA",null,null,"GRECIA"]
["GROENLANDIA",null,null,"GROENLANDIA"]
["GUADALUPE",null,null,"GUADALUPE"]
["GUAM",null,null,"GUAM"]
["GUATEMALA",null,null,"GUATEMALA"]
["GUERNSEY",null,null,"GUERNSEY"]
["GUINEA",null,null,"GUINEA"]
["GUINEA ECUATORIAL",null,null,"GUINEA ECUATORIAL"]
["GUINEA-BISSAU",null,null,"GUINEA-BISSAU"]
["GUYANA",null,null,"GUYANA"]
["GUYANA FRANCESA",null,null,"GUYANA FRANCESA"]
["HAITÍ",null,null,"HAITÍ"]
["HOLANDA",null,null,"HOLANDA"]
["HONDURAS",null,null,"HONDURAS"]
["HONG KONG",null,null,"HONG KONG"]
["HUNGRÍA",null,null,"HUNGRÍA"]
["INDIA",null,null,"INDIA"]
["INDONESIA",null,null,"INDONESIA"]
["IRAK",null,null,"IRAK"]
["IRLANDA",null,null,"IRLANDA"]
["ISLA BOUVET",null,null,"ISLA BOUVET"]
["ISLA DE MAN",null,null,"ISLA DE MAN"]
["ISLA DE NAVIDAD",null,null,"ISLA DE NAVIDAD"]
["ISLA NORFOLK",null,null,"ISLA NORFOLK"]
["ISLANDIA",null,null,"ISLANDIA"]
["ISLAS ÅLAND",null,null,"ISLAS ÅLAND"]
["ISLAS CAIMÁN (LAS)",null,null,"ISLAS CAIMÁN (LAS)"]
["ISLAS COCOS (KEELING)",null,null,"ISLAS COCOS (KEELING)"]
["ISLAS COOK (LAS)",null,null,"ISLAS COOK (LAS)"]
["ISLAS FAROE",null,null,"ISLAS FAROE"]
["ISLAS GEORGIA DEL SUR Y SÁNDWICH DEL SUR",null,null,"ISLAS GEORGIA DEL SUR Y SÁNDWICH DEL SUR"]
["ISLAS HEARD Y McDONALD",null,null,"ISLAS HEARD Y McDONALD"]
["ISLAS MALVINAS",null,null,"ISLAS MALVINAS"]
["ISLAS MARIANS DEL NORTE",null,null,"ISLAS MARIANS DEL NORTE"]
["ISLAS MARSHALL",null,null,"ISLAS MARSHALL"]
["ISLAS SALOMÓN",null,null,"ISLAS SALOMÓN"]
["ISLAS SVALBARD Y JAN MAYEN",null,null,"ISLAS SVALBARD Y JAN MAYEN"]
["ISLAS TURCOS Y CAICOS",null,null,"ISLAS TURCOS Y CAICOS"]
["ISLAS ULTRAMARINAS MENORES DE EE. UU.",null,null,"ISLAS ULTRAMARINAS MENORES DE EE. UU."]
["ISLAS VÍRGENES (EEUU)",null,null,"ISLAS VÍRGENES (EEUU)"]
["ISLAS VÍRGENES BRITÁNICAS",null,null,"ISLAS VÍRGENES BRITÁNICAS"]
["ISRAEL",null,null,"ISRAEL"]
["ITALIA",null,null,"ITALIA"]
["JAMAICA",null,null,"JAMAICA"]
["JAPÓN",null,null,"JAPÓN"]
["JERSEY",null,null,"JERSEY"]
["JORDANIA",null,null,"JORDANIA"]
["KAZAJISTÁN",null,null,"KAZAJISTÁN"]
["KENIA",null,null,"KENIA"]
["KIRGUISTÁN",null,null,"KIRGUISTÁN"]
["KIRIBATI",null,null,"KIRIBATI"]
["KUWAIT",null,null,"KUWAIT"]
["LESOTO",null,null,"LESOTO"]
["LETONIA",null,null,"LETONIA"]
["LÍBANO",null,null,"LÍBANO"]
["LIBERIA",null,null,"LIBERIA"]
["LIBIA",null,null,"LIBIA"]
["LIECHTENSTEIN",null,null,"LIECHTENSTEIN"]
["LITUANIA",null,null,"LITUANIA"]
["LUXEMBURGO",null,null,"LUXEMBURGO"]
["MACAO",null,null,"MACAO"]
["MACEDONIA",null,null,"MACEDONIA"]
["MADAGASCAR",null,null,"MADAGASCAR"]
["MALASIA",null,null,"MALASIA"]
["MALAWI",null,null,"MALAWI"]
["MALDIVAS",null,null,"MALDIVAS"]
["MALÍ",null,null,"MALÍ"]
["MALTA",null,null,"MALTA"]
["MARRUECOS",null,null,"MARRUECOS"]
["MARTINICA",null,null,"MARTINICA"]
["MAURICIO",null,null,"MAURICIO"]
["MAURITANIA",null,null,"MAURITANIA"]
["MAYOTTE",null,null,"MAYOTTE"]
["MÉXICO",null,null,"MÉXICO"]
["MICRONESIA",null,null,"MICRONESIA"]
["MÓNACO",null,null,"MÓNACO"]
["MONGOLIA",null,null,"MONGOLIA"]
["MONTENEGRO",null,null,"MONTENEGRO"]
["MONTSERRAT",null,null,"MONTSERRAT"]
["MOZAMBIQUE",null,null,"MOZAMBIQUE"]
["NAMIBIA",null,null,"NAMIBIA"]
["NAURU",null,null,"NAURU"]
["NEPAL",null,null,"NEPAL"]
["NICARAGUA",null,null,"NICARAGUA"]
["NIGERIA",null,null,"NIGERIA"]
["NIUE",null,null,"NIUE"]
["NORUEGA",null,null,"NORUEGA"]
["NUEVA CALEDONIA",null,null,"NUEVA CALEDONIA"]
["NUEVA ZELANDA",null,null,"NUEVA ZELANDA"]
["OMÁN",null,null,"OMÁN"]
["PAISES MIEMBROS DEL BANCO AFRICANO DE DESARROLLO",null,null,"PAISES MIEMBROS DEL BANCO AFRICANO DE DESARROLLO"]
["PAKISTÁN",null,null,"PAKISTÁN"]
["PALAU",null,null,"PALAU"]
["PANAMÁ",null,null,"PANAMÁ"]
["PAPÚA NUEVA GUINEA",null,null,"PAPÚA NUEVA GUINEA"]
["PARAGUAY",null,null,"PARAGUAY"]
["PERU",null,null,"PERU"]
["PITCAIRN",null,null,"PITCAIRN"]
["POLINESIA FRANCESA",null,null,"POLINESIA FRANCESA"]
["POLONIA",null,null,"POLONIA"]
["PORTUGAL",null,null,"PORTUGAL"]
["PUERTO RICO",null,null,"PUERTO RICO"]
["QATAR",null,null,"QATAR"]
["REINO UNIDO DE GRAN BRETAÑA E IRLANDA DEL NORTE",null,null,"REINO UNIDO DE GRAN BRETAÑA E IRLANDA DEL NORTE"]
["REPÚBLICA ÁRABE SIRIA",null,null,"REPÚBLICA ÁRABE SIRIA"]
["REPÚBLICA BOLIVARIANA DE VENEZUELA",null,null,"REPÚBLICA BOLIVARIANA DE VENEZUELA"]
["REPÚBLICA CENTROAFRICANA (LA)",null,null,"REPÚBLICA CENTROAFRICANA (LA)"]
["REPÚBLICA CHECA",null,null,"REPÚBLICA CHECA"]
["REPÚBLICA DE COREA DEL SUR",null,null,"REPÚBLICA DE COREA DEL SUR"]
["REPÚBLICA DE MOLDAVIA",null,null,"REPÚBLICA DE MOLDAVIA"]
["REPÚBLICA DEMOCRATICA DE COREA DEL NORTE",null,null,"REPÚBLICA DEMOCRATICA DE COREA DEL NORTE"]
["REPUBLICA DEMOCRÁTICA POPULAR LAO",null,null,"REPUBLICA DEMOCRÁTICA POPULAR LAO"]
["REPÚBLICA DOMINICANA",null,null,"REPÚBLICA DOMINICANA"]
["REPÚBLICA ISLAMICA DE IRÁN",null,null,"REPÚBLICA ISLAMICA DE IRÁN"]
["REPÚBLICA UNIDA DE TANZANIA",null,null,"REPÚBLICA UNIDA DE TANZANIA"]
["REUNIÓN",null,null,"REUNIÓN"]
["RUANDA",null,null,"RUANDA"]
["RUMANIA",null,null,"RUMANIA"]
["RUSIA",null,null,"RUSIA"]
["SAHARA OCCIDENTAL",null,null,"SAHARA OCCIDENTAL"]
["SAMOA",null,null,"SAMOA"]
["SAMOA AMERICANA",null,null,"SAMOA AMERICANA"]
["SAN BARTOLOMÉ",null,null,"SAN BARTOLOMÉ"]
["SAN CRISTÓBAL Y NIEVES",null,null,"SAN CRISTÓBAL Y NIEVES"]
["SAN MARINO",null,null,"SAN MARINO"]
["SAN MARTÍN",null,null,"SAN MARTÍN"]
["SAN MARTÍN (PARTE HOLANDESA)",null,null,"SAN MARTÍN (PARTE HOLANDESA)"]
["SAN PEDRO Y MIQUELÓN",null,null,"SAN PEDRO Y MIQUELÓN"]
["SAN TOMÉ Y PRÍNCIPE",null,null,"SAN TOMÉ Y PRÍNCIPE"]
["SAN VICENTE Y LAS GRANADINAS",null,null,"SAN VICENTE Y LAS GRANADINAS"]
["SANTA HELENA ASCENCIÓN Y TRISTÁN DE ACUÑA",null,null,"SANTA HELENA ASCENCIÓN Y TRISTÁN DE ACUÑA"]
["SANTA LUCÍA",null,null,"SANTA LUCÍA"]
["SANTA SEDE",null,null,"SANTA SEDE"]
["SENEGAL",null,null,"SENEGAL"]
["SERBIA",null,null,"SERBIA"]
["SEYCHELLES",null,null,"SEYCHELLES"]
["SIERRA LEONA",null,null,"SIERRA LEONA"]
["SINGAPUR",null,null,"SINGAPUR"]
["SISTEMA UNITARIO DE COMPENSACION REGIONAL DE PAGOS \"SUCRE\"",null,null,"SISTEMA UNITARIO DE COMPENSACION REGIONAL DE PAGOS \"SUCRE\""]
["SOMALIA",null,null,"SOMALIA"]
["SRI LANKA",null,null,"SRI LANKA"]
["SUAZILANDIA",null,null,"SUAZILANDIA"]
["SUDÁFRICA",null,null,"SUDÁFRICA"]
["SUDÁN",null,null,"SUDÁN"]
["SUDÁN DEL SUR",null,null,"SUDÁN DEL SUR"]
["SUECIA",null,null,"SUECIA"]
["SUIZA",null,null,"SUIZA"]
["SURINAM",null,null,"SURINAM"]
["TAILANDIA",null,null,"TAILANDIA"]
["TAIWÁN (PROVINCIA DE CHINA)",null,null,"TAIWÁN (PROVINCIA DE CHINA)"]
["TAJIKISTÁN",null,null,"TAJIKISTÁN"]
["TERRITORIO BRITÁNICO DEL OCÉANO ÍNDICO",null,null,"TERRITORIO BRITÁNICO DEL OCÉANO ÍNDICO"]
["TERRITORIOS AUSTRALES FRANCESES",null,null,"TERRITORIOS AUSTRALES FRANCESES"]
["TIMOR ORIENTAL",null,null,"TIMOR ORIENTAL"]
["TOGO",null,null,"TOGO"]
["TOKELAU",null,null,"TOKELAU"]
["TONGA",null,null,"TONGA"]
["TRINIDAD Y TOBAGO",null,null,"TRINIDAD Y TOBAGO"]
["TÚNEZ",null,null,"TÚNEZ"]
["TURMENISTÁN",null,null,"TURMENISTÁN"]
["TURQUÍA",null,null,"TURQUÍA"]
["TUVALU",null,null,"TUVALU"]
["UGANDA",null,null,"UGANDA"]
["UKRANIA",null,null,"UKRANIA"]
["UNIÓN EUROPEA",null,null,"UNIÓN EUROPEA"]
["URUGUAY",null,null,"URUGUAY"]
["UZBEKISTÁN",null,null,"UZBEKISTÁN"]
["VANUATU",null,null,"VANUATU"]
["VIETNAM",null,null,"VIETNAM"]
["WALLIS Y FUTUNA",null,null,"WALLIS Y FUTUNA"]
["YEMEN",null,null,"YEMEN"]
["YIBUTI",null,null,"YIBUTI"]
["ZAMBIA",null,null,"ZAMBIA"]
["ZIMBABUE",null,null,"ZIMBABUE"]

{"sheet":"Divisas","index":1,"n_rows":269,"n_cols":6,"rows_kept":269,"cut":false,"hidden":false,"merged":[]}
["País","Divisa","Código","Número","Unidades","Formato"]
["AFGANISTÁN","Afgani afgano","AFN",971,{"$f":"IFERROR(INDEX(Currency[CcyMnrUnts],MATCH(Divisas[[#This Row],[Número]],Currency[CcyNbr],0)),2)","v":2}]
["ALBANIA","Lek","ALL",8,{"$f":"IFERROR(INDEX(Currency[CcyMnrUnts],MATCH(Divisas[[#This Row],[Número]],Currency[CcyNbr],0)),2)","v":2}]
["ALEMANIA","Euro","EUR",978,{"$f":"IFERROR(INDEX(Currency[CcyMnrUnts],MATCH(Divisas[[#This Row],[Número]],Currency[CcyNbr],0)),2)","v":2}]
["ALGERIA","Dinar argelino","DZD",12,{"$f":"IFERROR(INDEX(Currency[CcyMnrUnts],MATCH(Divisas[[#This Row],[Número]],Currency[CcyNbr],0)),2)","v":2}]
["ANDORRA","Euro","EUR",978,{"$f":"IFERROR(INDEX(Currency[CcyMnrUnts],MATCH(Divisas[[#This Row],[Número]],Currency[CcyNbr],0)),2)","v":2}]
["ANGOLA","Kwanza angoleño","AOA",973,{"$f":"IFERROR(INDEX(Currency[CcyMnrUnts],MATCH(Divisas[[#This Row],[Número]],Currency[CcyNbr],0)),2)","v":2}]
["ANGUILLA","Dólar del Caribe Oriental","XCD",951,{"$f":"IFERROR(INDEX(Currency[CcyMnrUnts],MATCH(Divisas[[#This Row],[Número]],Currency[CcyNbr],0)),2)","v":2}]
["ANTIGUA Y BARBUDA","Dólar del Caribe Oriental","XCD",951,{"$f":"IFERROR(INDEX(Currency[CcyMnrUnts],MATCH(Divisas[[#This Row],[Número]],Currency[CcyNbr],0)),2)","v":2}]
["ANTÁRTICA","Sin divisa universal",null,null,{"$f":"IFERROR(INDEX(Currency[CcyMnrUnts],MATCH(Divisas[[#This Row],[Número]],Currency[CcyNbr],0)),2)","v":2}]
["ARABIA SAUDITA","Riyal saudí","SAR",682,{"$f":"IFERROR(INDEX(Currency[CcyMnrUnts],MATCH(Divisas[[#This Row],[Número]],Currency[CcyNbr],0)),2)","v":2}]
["ARGENTINA","Peso argentino","ARS",32,{"$f":"IFERROR(INDEX(Currency[CcyMnrUnts],MATCH(Divisas[[#This Row],[Número]],Currency[CcyNbr],0)),2)","v":2}]
["ARMENIA","Dram armenio","AMD",51,{"$f":"IFERROR(INDEX(Currency[CcyMnrUnts],MATCH(Divisas[[#This Row],[Número]],Currency[CcyNbr],0)),2)","v":2}]
["ARUBA","Florín arubeño","AWG",533,{"$f":"IFERROR(INDEX(Currency[CcyMnrUnts],MATCH(Divisas[[#This Row],[Número]],Currency[CcyNbr],0)),2)","v":2}]
["AUSTRALIA","Dólar australiano","AUD",36,{"$f":"IFERROR(INDEX(Currency[CcyMnrUnts],MATCH(Divisas[[#This Row],[Número]],Currency[CcyNbr],0)),2)","v":2}]
["AUSTRIA","Euro","EUR",978,{"$f":"IFERROR(INDEX(Currency[CcyMnrUnts],MATCH(Divisas[[#This Row],[Número]],Currency[CcyNbr],0)),2)","v":2}]
["AZERBAIYÁN","Manat azerbaiyano","AZN",944,{"$f":"IFERROR(INDEX(Currency[CcyMnrUnts],MATCH(Divisas[[#This Row],[Número]],Currency[CcyNbr],0)),2)","v":2}]
["BAHAMAS (LAS)","Dólar bahameño","BSD",44,{"$f":"IFERROR(INDEX(Currency[CcyMnrUnts],MATCH(Divisas[[#This Row],[Número]],Currency[CcyNbr],0)),2)","v":2}]
["BANGLADESH","Taka","BDT",50,{"$f":"IFERROR(INDEX(Currency[CcyMnrUnts],MATCH(Divisas[[#This Row],[Número]],Currency[CcyNbr],0)),2)","v":2}]
["BARBADOS","Dólar de Barbados","BBD",52,{"$f":"IFERROR(INDEX(Currency[CcyMnrUnts],MATCH(Divisas[[#This Row],[Número]],Currency[CcyNbr],0)),2)","v":2}]
["BARÉIN","Dinar bareiní","BHD",48,{"$f":"IFERROR(INDEX(Currency[CcyMnrUnts],MATCH(Divisas[[#This Row],[Número]],Currency[CcyNbr],0)),2)","v":3}]
["BELICE","Dólar beliceño","BZD",84,{"$f":"IFERROR(INDEX(Currency[CcyMnrUnts],MATCH(Divisas[[#This Row],[Número]],Currency[CcyNbr],0)),2)","v":2}]
["BENÍN","Franco CFA de África Occidental","XOF",952,{"$f":"IFERROR(INDEX(Currency[CcyMnrUnts],MATCH(Divisas[[#This Row],[Número]],Currency[CcyNbr],0)),2)","v":0}]
["BERMUDA","Dólar bermudeño","BMD",60,{"$f":"IFERROR(INDEX(Currency[CcyMnrUnts],MATCH(Divisas[[#This Row],[Número]],Currency[CcyNbr],0)),2)","v":2}]
["BIELORRUSIA","Rublo bielorruso","BYR",974,{"$f":"IFERROR(INDEX(Currency[CcyMnrUnts],MATCH(Divisas[[#This Row],[Número]],Currency[CcyNbr],0)),2)","v":2}]
["BIRMANIA","Kyat birmano","MMK",104,{"$f":"IFERROR(INDEX(Currency[CcyMnrUnts],MATCH(Divisas[[#This Row],[Número]],Currency[CcyNbr],0)),2)","v":2}]
["BOLIVIA (ESTADO PLURINACIONAL DE)","Boliviano","BOB",68,{"$f":"IFERROR(INDEX(Currency[CcyMnrUnts],MATCH(Divisas[[#This Row],[Número]],Currency[CcyNbr],0)),2)","v":2}]
["BOLIVIA (ESTADO PLURINACIONAL DE)","Mvdol","BOV",984,{"$f":"IFERROR(INDEX(Currency[CcyMnrUnts],MATCH(Divisas[[#This Row],[Número]],Currency[CcyNbr],0)),2)","v":2}]
["BONAIRE, SAN EUSTAQUIO Y SABA","Dólar estadounidense","USD",840,{"$f":"IFERROR(INDEX(Currency[CcyMnrUnts],MATCH(Divisas[[#This Row],[Número]],Currency[CcyNbr],0)),2)","v":2}]
["BOSNIA Y HERZEGOVINA","Marco bosnioherzegovino","BAM",977,{"$f":"IFERROR(INDEX(Currency[CcyMnrUnts],MATCH(Divisas[[#This Row],[Número]],Currency[CcyNbr],0)),2)","v":2}]
["BOTSUANA","Pula","BWP",72,{"$f":"IFERROR(INDEX(Currency[CcyMnrUnts],MATCH(Divisas[[#This Row],[Número]],Currency[CcyNbr],0)),2)","v":2}]
["BRASIL","Real brasileño","BRL",986,{"$f":"IFERROR(INDEX(Currency[CcyMnrUnts],MATCH(Divisas[[#This Row],[Número]],Currency[CcyNbr],0)),2)","v":2}]
["BRUNÉI DARUSSALAM","Dólar de Brunei","BND",96,{"$f":"IFERROR(INDEX(Currency[CcyMnrUnts],MATCH(Divisas[[#This Row],[Número]],Currency[CcyNbr],0)),2)","v":2}]
["BULGARIA","Lev","BGN",975,{"$f":"IFERROR(INDEX(Currency[CcyMnrUnts],MATCH(Divisas[[#This Row],[Número]],Currency[CcyNbr],0)),2)","v":2}]
["BURKINA FASO","Franco CFA de África Occidental","XOF",952,{"$f":"IFERROR(INDEX(Currency[CcyMnrUnts],MATCH(Divisas[[#This Row],[Número]],Currency[CcyNbr],0)),2)","v":0}]
["BURUNDI","Franco burundés","BIF",108,{"$f":"IFERROR(INDEX(Currency[CcyMnrUnts],MATCH(Divisas[[#This Row],[Número]],Currency[CcyNbr],0)),2)","v":0}]
["BUTÁN","Rupia india","INR",356,{"$f":"IFERROR(INDEX(Currency[CcyMnrUnts],MATCH(Divisas[[#This Row],[Número]],Currency[CcyNbr],0)),2)","v":2}]
["BUTÁN","Ngultrum butanés","BTN",64,{"$f":"IFERROR(INDEX(Currency[CcyMnrUnts],MATCH(Divisas[[#This Row],[Número]],Currency[CcyNbr],0)),2)","v":2}]
["BÉLGICA","Euro","EUR",978,{"$f":"IFERROR(INDEX(Currency[CcyMnrUnts],MATCH(Divisas[[#This Row],[Número]],Currency[CcyNbr],0)),2)","v":2}]
["CABO VERDE","Escudo caboverdiano","CVE",132,{"$f":"IFERROR(INDEX(Currency[CcyMnrUnts],MATCH(Divisas[[#This Row],[Número]],Currency[CcyNbr],0)),2)","v":2}]
["CAMBOYA","Riel camboyano","KHR",116,{"$f":"IFERROR(INDEX(Currency[CcyMnrUnts],MATCH(Divisas[[#This Row],[Número]],Currency[CcyNbr],0)),2)","v":2}]
["CAMERÚN","Franco CFA de África Central","XAF",950,{"$f":"IFERROR(INDEX(Currency[CcyMnrUnts],MATCH(Divisas[[#This Row],[Número]],Currency[CcyNbr],0)),2)","v":0}]
["CANADÁ","Dólar canadiense","CAD",124,{"$f":"IFERROR(INDEX(Currency[CcyMnrUnts],MATCH(Divisas[[#This Row],[Número]],Currency[CcyNbr],0)),2)","v":2}]
["CHAD","Franco CFA de África Central","XAF",950,{"$f":"IFERROR(INDEX(Currency[CcyMnrUnts],MATCH(Divisas[[#This Row],[Número]],Currency[CcyNbr],0)),2)","v":0}]
["CHILE","Peso chileno","CLP",152,{"$f":"IFERROR(INDEX(Currency[CcyMnrUnts],MATCH(Divisas[[#This Row],[Número]],Currency[CcyNbr],0)),2)","v":0}]
["CHILE","Unidad de Fomento","CLF",990,{"$f":"IFERROR(INDEX(Currency[CcyMnrUnts],MATCH(Divisas[[#This Row],[Número]],Currency[CcyNbr],0)),2)","v":4}]
["CHINA","Renminbi","CNY",156,{"$f":"IFERROR(INDEX(Currency[CcyMnrUnts],MATCH(Divisas[[#This Row],[Número]],Currency[CcyNbr],0)),2)","v":2}]
["CHIPRE","Euro","EUR",978,{"$f":"IFERROR(INDEX(Currency[CcyMnrUnts],MATCH(Divisas[[#This Row],[Número]],Currency[CcyNbr],0)),2)","v":2}]
["COLOMBIA","Unidad de valor real","COU",970,{"$f":"IFERROR(INDEX(Currency[CcyMnrUnts],MATCH(Divisas[[#This Row],[Número]],Currency[CcyNbr],0)),2)","v":2}]
["COLOMBIA","Peso colombiano","COP",170,{"$f":"IFERROR(INDEX(Currency[CcyMnrUnts],MATCH(Divisas[[#This Row],[Número]],Currency[CcyNbr],0)),2)","v":2}]
["COMORAS","Franco comorense","KMF",174,{"$f":"IFERROR(INDEX(Currency[CcyMnrUnts],MATCH(Divisas[[#This Row],[Número]],Currency[CcyNbr],0)),2)","v":0}]
["CONGO (EL)","Franco CFA de África Central","XAF",950,{"$f":"IFERROR(INDEX(Currency[CcyMnrUnts],MATCH(Divisas[[#This Row],[Número]],Currency[CcyNbr],0)),2)","v":0}]
["CONGO (REPÚBLICA DEMOCRÁTIC DEL)","Franco congoleño","CDF",976,{"$f":"IFERROR(INDEX(Currency[CcyMnrUnts],MATCH(Divisas[[#This Row],[Número]],Currency[CcyNbr],0)),2)","v":2}]
["COSTA DE MARFIL","Franco CFA de África Occidental","XOF",952,{"$f":"IFERROR(INDEX(Currency[CcyMnrUnts],MATCH(Divisas[[#This Row],[Número]],Currency[CcyNbr],0)),2)","v":0}]
["COSTA RICA","Colón costarricense","CRC",188,{"$f":"IFERROR(INDEX(Currency[CcyMnrUnts],MATCH(Divisas[[#This Row],[Número]],Currency[CcyNbr],0)),2)","v":2}]
["CROACIA","Kuna","HRK",191,{"$f":"IFERROR(INDEX(Currency[CcyMnrUnts],MATCH(Divisas[[#This Row],[Número]],Currency[CcyNbr],0)),2)","v":2}]
["CUBA","Peso convertible","CUC",931,{"$f":"IFERROR(INDEX(Currency[CcyMnrUnts],MATCH(Divisas[[#This Row],[Número]],Currency[CcyNbr],0)),2)","v":2}]
["CUBA","Peso cubano","CUP",192,{"$f":"IFERROR(INDEX(Currency[CcyMnrUnts],MATCH(Divisas[[#This Row],[Número]],Currency[CcyNbr],0)),2)","v":2}]
["CURAZAO","Florín antillano neerlandés","ANG",532,{"$f":"IFERROR(INDEX(Currency[CcyMnrUnts],MATCH(Divisas[[#This Row],[Número]],Currency[CcyNbr],0)),2)","v":2}]
["DINAMARCA","Corona danesa","DKK",208,{"$f":"IFERROR(INDEX(Currency[CcyMnrUnts],MATCH(Divisas[[#This Row],[Número]],Currency[CcyNbr],0)),2)","v":2}]
["DOMINICA","Dólar del Caribe Oriental","XCD",951,{"$f":"IFERROR(INDEX(Currency[CcyMnrUnts],MATCH(Divisas[[#This Row],[Número]],Currency[CcyNbr],0)),2)","v":2}]
["ECUADOR","Dólar estadounidense","USD",840,{"$f":"IFERROR(INDEX(Currency[CcyMnrUnts],MATCH(Divisas[[#This Row],[Número]],Currency[CcyNbr],0)),2)","v":2}]
["EGIPTO","Libra egipcia","EGP",818,{"$f":"IFERROR(INDEX(Currency[CcyMnrUnts],MATCH(Divisas[[#This Row],[Número]],Currency[CcyNbr],0)),2)","v":2}]
["EL SALVADOR","Colón","SVC",222,{"$f":"IFERROR(INDEX(Currency[CcyMnrUnts],MATCH(Divisas[[#This Row],[Número]],Currency[CcyNbr],0)),2)","v":2}]
["EL SALVADOR","Dólar estadounidense","USD",840,{"$f":"IFERROR(INDEX(Currency[CcyMnrUnts],MATCH(Divisas[[#This Row],[Número]],Currency[CcyNbr],0)),2)","v":2}]
["EMIRATOS ÁRABES UNIDOS","Dirham DE EAU","AED",784,{"$f":"IFERROR(INDEX(Currency[CcyMnrUnts],MATCH(Divisas[[#This Row],[Número]],Currency[CcyNbr],0)),2)","v":2}]
["ERITREA","Nakfa","ERN",232,{"$f":"IFERROR(INDEX(Currency[CcyMnrUnts],MATCH(Divisas[[#This Row],[Número]],Currency[CcyNbr],0)),2)","v":2}]
["ESLOVAQUIA","Euro","EUR",978,{"$f":"IFERROR(INDEX(Currency[CcyMnrUnts],MATCH(Divisas[[#This Row],[Número]],Currency[CcyNbr],0)),2)","v":2}]
["ESLOVENIA","Euro","EUR",978,{"$f":"IFERROR(INDEX(Currency[CcyMnrUnts],MATCH(Divisas[[#This Row],[Número]],Currency[CcyNbr],0)),2)","v":2}]
["ESPAÑA","Euro","EUR",978,{"$f":"IFERROR(INDEX(Currency[CcyMnrUnts],MATCH(Divisas[[#This Row],[Número]],Currency[CcyNbr],0)),2)","v":2}]
["ESTADO DE PALESTINA","Sin divisa universal",null,null,{"$f":"IFERROR(INDEX(Currency[CcyMnrUnts],MATCH(Divisas[[#This Row],[Número]],Currency[CcyNbr],0)),2)","v":2}]
["ESTADOS UNIDOS DE AMÉRICA","Dólar estadounidense","USD",840,{"$f":"IFERROR(INDEX(Currency[CcyMnrUnts],MATCH(Divisas[[#This Row],[Número]],Currency[CcyNbr],0)),2)","v":2}]
["ESTADOS UNIDOS DE AMÉRICA","Dólar estadounidense (Next day)","USN",997,{"$f":"IFERROR(INDEX(Currency[CcyMnrUnts],MATCH(Divisas[[#This Row],[Número]],Currency[CcyNbr],0)),2)","v":2}]
["ESTONIA","Euro","EUR",978,{"$f":"IFERROR(INDEX(Currency[CcyMnrUnts],MATCH(Divisas[[#This Row],[Número]],Currency[CcyNbr],0)),2)","v":2}]
["ETIOPÍA","Birr etíope","ETB",230,{"$f":"IFERROR(INDEX(Currency[CcyMnrUnts],MATCH(Divisas[[#This Row],[Número]],Currency[CcyNbr],0)),2)","v":2}]
["FIJI","Dólar fiyiano","FJD",242,{"$f":"IFERROR(INDEX(Currency[CcyMnrUnts],MATCH(Divisas[[#This Row],[Número]],Currency[CcyNbr],0)),2)","v":2}]
["FILIPINAS","Peso filipino","PHP",608,{"$f":"IFERROR(INDEX(Currency[CcyMnrUnts],MATCH(Divisas[[#This Row],[Número]],Currency[CcyNbr],0)),2)","v":2}]
["FINLANDIA","Euro","EUR",978,{"$f":"IFERROR(INDEX(Currency[CcyMnrUnts],MATCH(Divisas[[#This Row],[Número]],Currency[CcyNbr],0)),2)","v":2}]
["FONDO MONETARIO INTERNACIONAL","SDR (Derecho Especial de Retiro)","XDR",960,{"$f":"IFERROR(INDEX(Currency[CcyMnrUnts],MATCH(Divisas[[#This Row],[Número]],Currency[CcyNbr],0)),2)","v":0}]
["FRANCIA","Euro","EUR",978,{"$f":"IFERROR(INDEX(Currency[CcyMnrUnts],MATCH(Divisas[[#This Row],[Número]],Currency[CcyNbr],0)),2)","v":2}]
["GABÓN","Franco CFA de África Central","XAF",950,{"$f":"IFERROR(INDEX(Currency[CcyMnrUnts],MATCH(Divisas[[#This Row],[Número]],Currency[CcyNbr],0)),2)","v":0}]
["GAMBIA","Dalasi","GMD",270,{"$f":"IFERROR(INDEX(Currency[CcyMnrUnts],MATCH(Divisas[[#This Row],[Número]],Currency[CcyNbr],0)),2)","v":2}]
["GEORGIA","Lari","GEL",981,{"$f":"IFERROR(INDEX(Currency[CcyMnrUnts],MATCH(Divisas[[#This Row],[Número]],Currency[CcyNbr],0)),2)","v":2}]
["GHANA","Cedi","GHS",936,{"$f":"IFERROR(INDEX(Currency[CcyMnrUnts],MATCH(Divisas[[#This Row],[Número]],Currency[CcyNbr],0)),2)","v":2}]
["GIBRALTAR","Libra gibraltareña","GIP",292,{"$f":"IFERROR(INDEX(Currency[CcyMnrUnts],MATCH(Divisas[[#This Row],[Número]],Currency[CcyNbr],0)),2)","v":2}]
["GRANADA","Dólar del Caribe Oriental","XCD",951,{"$f":"IFERROR(INDEX(Currency[CcyMnrUnts],MATCH(Divisas[[#This Row],[Número]],Currency[CcyNbr],0)),2)","v":2}]
["GRECIA","Euro","EUR",978,{"$f":"IFERROR(INDEX(Currency[CcyMnrUnts],MATCH(Divisas[[#This Row],[Número]],Currency[CcyNbr],0)),2)","v":2}]
["GROENLANDIA","Corona danesa","DKK",208,{"$f":"IFERROR(INDEX(Currency[CcyMnrUnts],MATCH(Divisas[[#This Row],[Número]],Currency[CcyNbr],0)),2)","v":2}]
["GUADALUPE","Euro","EUR",978,{"$f":"IFERROR(INDEX(Currency[CcyMnrUnts],MATCH(Divisas[[#This Row],[Número]],Currency[CcyNbr],0)),2)","v":2}]
["GUAM","Dólar estadounidense","USD",840,{"$f":"IFERROR(INDEX(Currency[CcyMnrUnts],MATCH(Divisas[[#This Row],[Número]],Currency[CcyNbr],0)),2)","v":2}]
["GUATEMALA","Quetzal","GTQ",320,{"$f":"IFERROR(INDEX(Currency[CcyMnrUnts],MATCH(Divisas[[#This Row],[Número]],Currency[CcyNbr],0)),2)","v":2}]
["GUERNSEY","Libra esterlina","GBP",826,{"$f":"IFERROR(INDEX(Currency[CcyMnrUnts],MATCH(Divisas[[#This Row],[Número]],Currency[CcyNbr],0)),2)","v":2}]
["GUINEA","Franco guineano","GNF",324,{"$f":"IFERROR(INDEX(Currency[CcyMnrUnts],MATCH(Divisas[[#This Row],[Número]],Currency[CcyNbr],0)),2)","v":0}]
["GUINEA ECUATORIAL","Franco CFA de África Central","XAF",950,{"$f":"IFERROR(INDEX(Currency[CcyMnrUnts],MATCH(Divisas[[#This Row],[Número]],Currency[CcyNbr],0)),2)","v":0}]
["GUINEA-BISSAU","Franco CFA de África Occidental","XOF",952,{"$f":"IFERROR(INDEX(Currency[CcyMnrUnts],MATCH(Divisas[[#This Row],[Número]],Currency[CcyNbr],0)),2)","v":0}]
["GUYANA","Dólar guyanés","GYD",328,{"$f":"IFERROR(INDEX(Currency[CcyMnrUnts],MATCH(Divisas[[#This Row],[Número]],Currency[CcyNbr],0)),2)","v":2}]
["GUYANA FRANCESA","Euro","EUR",978,{"$f":"IFERROR(INDEX(Currency[CcyMnrUnts],MATCH(Divisas[[#This Row],[Número]],Currency[CcyNbr],0)),2)","v":2}]
["HAITÍ","Dólar estadounidense","USD",840,{"$f":"IFERROR(INDEX(Currency[CcyMnrUnts],MATCH(Divisas[[#This Row],[Número]],Currency[CcyNbr],0)),2)","v":2}]
["HAITÍ","Gourde","HTG",332,{"$f":"IFERROR(INDEX(Currency[CcyMnrUnts],MATCH(Divisas[[#This Row],[Número]],Currency[CcyNbr],0)),2)","v":2}]
["HOLANDA","Euro","EUR",978,{"$f":"IFERROR(INDEX(Currency[CcyMnrUnts],MATCH(Divisas[[#This Row],[Número]],Currency[CcyNbr],0)),2)","v":2}]
["HONDURAS","Lempira","HNL",340,{"$f":"IFERROR(INDEX(Currency[CcyMnrUnts],MATCH(Divisas[[#This Row],[Número]],Currency[CcyNbr],0)),2)","v":2}]
["HONG KONG","Dólar de Hong Kong","HKD",344,{"$f":"IFERROR(INDEX(Currency[CcyMnrUnts],MATCH(Divisas[[#This Row],[Número]],Currency[CcyNbr],0)),2)","v":2}]
["HUNGRÍA","Forinto húngaro","HUF",348,{"$f":"IFERROR(INDEX(Currency[CcyMnrUnts],MATCH(Divisas[[#This Row],[Número]],Currency[CcyNbr],0)),2)","v":2}]
["INDIA","Rupia india","INR",356,{"$f":"IFERROR(INDEX(Currency[CcyMnrUnts],MATCH(Divisas[[#This Row],[Número]],Currency[CcyNbr],0)),2)","v":2}]
["INDONESIA","Rupia indonesia","IDR",360,{"$f":"IFERROR(INDEX(Currency[CcyMnrUnts],MATCH(Divisas[[#This Row],[Número]],Currency[CcyNbr],0)),2)","v":2}]
["IRAK","Dinar iraquí","IQD",368,{"$f":"IFERROR(INDEX(Currency[CcyMnrUnts],MATCH(Divisas[[#This Row],[Número]],Currency[CcyNbr],0)),2)","v":3}]
["IRLANDA","Euro","EUR",978,{"$f":"IFERROR(INDEX(Currency[CcyMnrUnts],MATCH(Divisas[[#This Row],[Número]],Currency[CcyNbr],0)),2)","v":2}]
["ISLA BOUVET","Corona noruega","NOK",578,{"$f":"IFERROR(INDEX(Currency[CcyMnrUnts],MATCH(Divisas[[#This Row],[Número]],Currency[CcyNbr],0)),2)","v":2}]
["ISLA DE MAN","Libra esterlina","GBP",826,{"$f":"IFERROR(INDEX(Currency[CcyMnrUnts],MATCH(Divisas[[#This Row],[Número]],Currency[CcyNbr],0)),2)","v":2}]
["ISLA DE NAVIDAD","Dólar australiano","AUD",36,{"$f":"IFERROR(INDEX(Currency[CcyMnrUnts],MATCH(Divisas[[#This Row],[Número]],Currency[CcyNbr],0)),2)","v":2}]
["ISLA NORFOLK","Dólar australiano","AUD",36,{"$f":"IFERROR(INDEX(Currency[CcyMnrUnts],MATCH(Divisas[[#This Row],[Número]],Currency[CcyNbr],0)),2)","v":2}]
["ISLANDIA","Corona islandesa","ISK",352,{"$f":"IFERROR(INDEX(Currency[CcyMnrUnts],MATCH(Divisas[[#This Row],[Número]],Currency[CcyNbr],0)),2)","v":0}]
["ISLAS CAIMÁN (LAS)","Dólar de las Islas Cayman","KYD",136,{"$f":"IFERROR(INDEX(Currency[CcyMnrUnts],MATCH(Divisas[[#This Row],[Número]],Currency[CcyNbr],0)),2)","v":2}]
["ISLAS COCOS (KEELING)","Dólar australiano","AUD",36,{"$f":"IFERROR(INDEX(Currency[CcyMnrUnts],MATCH(Divisas[[#This Row],[Número]],Currency[CcyNbr],0)),2)","v":2}]
["ISLAS COOK (LAS)","Dólar de la Islas Cook","NZD",554,{"$f":"IFERROR(INDEX(Currency[CcyMnrUnts],MATCH(Divisas[[#This Row],[Número]],Currency[CcyNbr],0)),2)","v":2}]
["ISLAS FAROE","Corona danesa","DKK",208,{"$f":"IFERROR(INDEX(Currency[CcyMnrUnts],MATCH(Divisas[[#This Row],[Número]],Currency[CcyNbr],0)),2)","v":2}]
["ISLAS GEORGIA DEL SUR Y SÁNDWICH DEL SUR","Sin divisa universal",null,null,{"$f":"IFERROR(INDEX(Currency[CcyMnrUnts],MATCH(Divisas[[#This Row],[Número]],Currency[CcyNbr],0)),2)","v":2}]
["ISLAS HEARD Y McDONALD","Dólar australiano","AUD",36,{"$f":"IFERROR(INDEX(Currency[CcyMnrUnts],MATCH(Divisas[[#This Row],[Número]],Currency[CcyNbr],0)),2)","v":2}]
["ISLAS MALVINAS","Libra malvinense","FKP",238,{"$f":"IFERROR(INDEX(Currency[CcyMnrUnts],MATCH(Divisas[[#This Row],[Número]],Currency[CcyNbr],0)),2)","v":2}]
["ISLAS MARIANS DEL NORTE","Dólar estadounidense","USD",840,{"$f":"IFERROR(INDEX(Currency[CcyMnrUnts],MATCH(Divisas[[#This Row],[Número]],Currency[CcyNbr],0)),2)","v":2}]
["ISLAS MARSHALL","Dólar estadounidense","USD",840,{"$f":"IFERROR(INDEX(Currency[CcyMnrUnts],MATCH(Divisas[[#This Row],[Número]],Currency[CcyNbr],0)),2)","v":2}]
["ISLAS SALOMÓN","Dólar de Islas Salomón","SBD",90,{"$f":"IFERROR(INDEX(Currency[CcyMnrUnts],MATCH(Divisas[[#This Row],[Número]],Currency[CcyNbr],0)),2)","v":2}]
["ISLAS SVALBARD Y JAN MAYEN","Corona noruega","NOK",578,{"$f":"IFERROR(INDEX(Currency[CcyMnrUnts],MATCH(Divisas[[#This Row],[Número]],Currency[CcyNbr],0)),2)","v":2}]
["ISLAS TURCOS Y CAICOS","Dólar estadounidense","USD",840,{"$f":"IFERROR(INDEX(Currency[CcyMnrUnts],MATCH(Divisas[[#This Row],[Número]],Currency[CcyNbr],0)),2)","v":2}]
["ISLAS ULTRAMARINAS MENORES DE EE. UU.","Dólar estadounidense","USD",840,{"$f":"IFERROR(INDEX(Currency[CcyMnrUnts],MATCH(Divisas[[#This Row],[Número]],Currency[CcyNbr],0)),2)","v":2}]
["ISLAS VÍRGENES (EEUU)","Dólar estadounidense","USD",840,{"$f":"IFERROR(INDEX(Currency[CcyMnrUnts],MATCH(Divisas[[#This Row],[Número]],Currency[CcyNbr],0)),2)","v":2}]
["ISLAS VÍRGENES BRITÁNICAS","Dólar estadounidense","USD",840,{"$f":"IFERROR(INDEX(Currency[CcyMnrUnts],MATCH(Divisas[[#This Row],[Número]],Currency[CcyNbr],0)),2)","v":2}]
["ISLAS ÅLAND","Euro","EUR",978,{"$f":"IFERROR(INDEX(Currency[CcyMnrUnts],MATCH(Divisas[[#This Row],[Número]],Currency[CcyNbr],0)),2)","v":2}]
["ISRAEL","Nuevo séquel","ILS",376,{"$f":"IFERROR(INDEX(Currency[CcyMnrUnts],MATCH(Divisas[[#This Row],[Número]],Currency[CcyNbr],0)),2)","v":2}]
["ITALIA","Euro","EUR",978,{"$f":"IFERROR(INDEX(Currency[CcyMnrUnts],MATCH(Divisas[[#This Row],[Número]],Currency[CcyNbr],0)),2)","v":2}]
["JAMAICA","Dólar jamaiquino","JMD",388,{"$f":"IFERROR(INDEX(Currency[CcyMnrUnts],MATCH(Divisas[[#This Row],[Número]],Currency[CcyNbr],0)),2)","v":2}]
["JAPÓN","Yen","JPY",392,{"$f":"IFERROR(INDEX(Currency[CcyMnrUnts],MATCH(Divisas[[#This Row],[Número]],Currency[CcyNbr],0)),2)","v":0}]
["JERSEY","Libra esterlina","GBP",826,{"$f":"IFERROR(INDEX(Currency[CcyMnrUnts],MATCH(Divisas[[#This Row],[Número]],Currency[CcyNbr],0)),2)","v":2}]
["JORDANIA","Dinar jordano","JOD",400,{"$f":"IFERROR(INDEX(Currency[CcyMnrUnts],MATCH(Divisas[[#This Row],[Número]],Currency[CcyNbr],0)),2)","v":3}]
["KAZAJISTÁN","Tenge kazajo","KZT",398,{"$f":"IFERROR(INDEX(Currency[CcyMnrUnts],MATCH(Divisas[[#This Row],[Número]],Currency[CcyNbr],0)),2)","v":2}]
["KENIA","Chelín keniano","KES",404,{"$f":"IFERROR(INDEX(Currency[CcyMnrUnts],MATCH(Divisas[[#This Row],[Número]],Currency[CcyNbr],0)),2)","v":2}]
["KIRGUISTÁN","Som","KGS",417,{"$f":"IFERROR(INDEX(Currency[CcyMnrUnts],MATCH(Divisas[[#This Row],[Número]],Currency[CcyNbr],0)),2)","v":2}]
["KIRIBATI","Dólar australiano","AUD",36,{"$f":"IFERROR(INDEX(Currency[CcyMnrUnts],MATCH(Divisas[[#This Row],[Número]],Currency[CcyNbr],0)),2)","v":2}]
["KUWAIT","Dinar kuwaití","KWD",414,{"$f":"IFERROR(INDEX(Currency[CcyMnrUnts],MATCH(Divisas[[#This Row],[Número]],Currency[CcyNbr],0)),2)","v":3}]
["LESOTO","Loti","LSL",426,{"$f":"IFERROR(INDEX(Currency[CcyMnrUnts],MATCH(Divisas[[#This Row],[Número]],Currency[CcyNbr],0)),2)","v":2}]
["LESOTO","Rand","ZAR",710,{"$f":"IFERROR(INDEX(Currency[CcyMnrUnts],MATCH(Divisas[[#This Row],[Número]],Currency[CcyNbr],0)),2)","v":2}]
["LETONIA","Euro","EUR",978,{"$f":"IFERROR(INDEX(Currency[CcyMnrUnts],MATCH(Divisas[[#This Row],[Número]],Currency[CcyNbr],0)),2)","v":2}]
["LIBERIA","Dólar liberiano","LRD",430,{"$f":"IFERROR(INDEX(Currency[CcyMnrUnts],MATCH(Divisas[[#This Row],[Número]],Currency[CcyNbr],0)),2)","v":2}]
["LIBIA","Dinar libio","LYD",434,{"$f":"IFERROR(INDEX(Currency[CcyMnrUnts],MATCH(Divisas[[#This Row],[Número]],Currency[CcyNbr],0)),2)","v":3}]
["LIECHTENSTEIN","Franco suizo","CHF",756,{"$f":"IFERROR(INDEX(Currency[CcyMnrUnts],MATCH(Divisas[[#This Row],[Número]],Currency[CcyNbr],0)),2)","v":2}]
["LITUANIA","Euro","EUR",978,{"$f":"IFERROR(INDEX(Currency[CcyMnrUnts],MATCH(Divisas[[#This Row],[Número]],Currency[CcyNbr],0)),2)","v":2}]
["LUXEMBURGO","Euro","EUR",978,{"$f":"IFERROR(INDEX(Currency[CcyMnrUnts],MATCH(Divisas[[#This Row],[Número]],Currency[CcyNbr],0)),2)","v":2}]
["LÍBANO","Libra libanesa","LBP",422,{"$f":"IFERROR(INDEX(Currency[CcyMnrUnts],MATCH(Divisas[[#This Row],[Número]],Currency[CcyNbr],0)),2)","v":2}]
["MACAO","Pataca","MOP",446,{"$f":"IFERROR(INDEX(Currency[CcyMnrUnts],MATCH(Divisas[[#This Row],[Número]],Currency[CcyNbr],0)),2)","v":2}]
["MACEDONIA","Dinar","MKD",807,{"$f":"IFERROR(INDEX(Currency[CcyMnrUnts],MATCH(Divisas[[#This Row],[Número]],Currency[CcyNbr],0)),2)","v":2}]
["MADAGASCAR","Ariary malgache","MGA",969,{"$f":"IFERROR(INDEX(Currency[CcyMnrUnts],MATCH(Divisas[[#This Row],[Número]],Currency[CcyNbr],0)),2)","v":2}]
["MALASIA","Ringgit malayo","MYR",458,{"$f":"IFERROR(INDEX(Currency[CcyMnrUnts],MATCH(Divisas[[#This Row],[Número]],Currency[CcyNbr],0)),2)","v":2}]
["MALAWI","Kwacha malauí","MWK",454,{"$f":"IFERROR(INDEX(Currency[CcyMnrUnts],MATCH(Divisas[[#This Row],[Número]],Currency[CcyNbr],0)),2)","v":2}]
["MALDIVAS","Rupia de maldivas","MVR",462,{"$f":"IFERROR(INDEX(Currency[CcyMnrUnts],MATCH(Divisas[[#This Row],[Número]],Currency[CcyNbr],0)),2)","v":2}]
["MALTA","Euro","EUR",978,{"$f":"IFERROR(INDEX(Currency[CcyMnrUnts],MATCH(Divisas[[#This Row],[Número]],Currency[CcyNbr],0)),2)","v":2}]
["MALÍ","Franco CFA de África Occidental","XOF",952,{"$f":"IFERROR(INDEX(Currency[CcyMnrUnts],MATCH(Divisas[[#This Row],[Número]],Currency[CcyNbr],0)),2)","v":0}]
["MARRUECOS","Dírham marroquí","MAD",504,{"$f":"IFERROR(INDEX(Currency[CcyMnrUnts],MATCH(Divisas[[#This Row],[Número]],Currency[CcyNbr],0)),2)","v":2}]
["MARTINICA","Euro","EUR",978,{"$f":"IFERROR(INDEX(Currency[CcyMnrUnts],MATCH(Divisas[[#This Row],[Número]],Currency[CcyNbr],0)),2)","v":2}]
["MAURICIO","Rupia de Mauricio","MUR",480,{"$f":"IFERROR(INDEX(Currency[CcyMnrUnts],MATCH(Divisas[[#This Row],[Número]],Currency[CcyNbr],0)),2)","v":2}]
["MAURITANIA","Uguiya","MRO",478,{"$f":"IFERROR(INDEX(Currency[CcyMnrUnts],MATCH(Divisas[[#This Row],[Número]],Currency[CcyNbr],0)),2)","v":2}]
["MAYOTTE","Euro","EUR",978,{"$f":"IFERROR(INDEX(Currency[CcyMnrUnts],MATCH(Divisas[[#This Row],[Número]],Currency[CcyNbr],0)),2)","v":2}]
["MICRONESIA","Dólar estadounidense","USD",840,{"$f":"IFERROR(INDEX(Currency[CcyMnrUnts],MATCH(Divisas[[#This Row],[Número]],Currency[CcyNbr],0)),2)","v":2}]
["MONGOLIA","Tugrik","MNT",496,{"$f":"IFERROR(INDEX(Currency[CcyMnrUnts],MATCH(Divisas[[#This Row],[Número]],Currency[CcyNbr],0)),2)","v":2}]
["MONTENEGRO","Euro","EUR",978,{"$f":"IFERROR(INDEX(Currency[CcyMnrUnts],MATCH(Divisas[[#This Row],[Número]],Currency[CcyNbr],0)),2)","v":2}]
["MONTSERRAT","Dólar del Caribe oriental","XCD",951,{"$f":"IFERROR(INDEX(Currency[CcyMnrUnts],MATCH(Divisas[[#This Row],[Número]],Currency[CcyNbr],0)),2)","v":2}]
["MOZAMBIQUE","Metical mozambiqueño","MZN",943,{"$f":"IFERROR(INDEX(Currency[CcyMnrUnts],MATCH(Divisas[[#This Row],[Número]],Currency[CcyNbr],0)),2)","v":2}]
["MÉXICO","Unidad de Inversion Mexicana(UDI)","MXV",979,{"$f":"IFERROR(INDEX(Currency[CcyMnrUnts],MATCH(Divisas[[#This Row],[Número]],Currency[CcyNbr],0)),2)","v":2}]
["MÉXICO","Peso mexicano","MXN",484,{"$f":"IFERROR(INDEX(Currency[CcyMnrUnts],MATCH(Divisas[[#This Row],[Número]],Currency[CcyNbr],0)),2)","v":2}]
["MÓNACO","Euro","EUR",978,{"$f":"IFERROR(INDEX(Currency[CcyMnrUnts],MATCH(Divisas[[#This Row],[Número]],Currency[CcyNbr],0)),2)","v":2}]
["NAMIBIA","Rand","ZAR",710,{"$f":"IFERROR(INDEX(Currency[CcyMnrUnts],MATCH(Divisas[[#This Row],[Número]],Currency[CcyNbr],0)),2)","v":2}]
["NAMIBIA","Dólar de Namibia","NAD",516,{"$f":"IFERROR(INDEX(Currency[CcyMnrUnts],MATCH(Divisas[[#This Row],[Número]],Currency[CcyNbr],0)),2)","v":2}]
["NAURU","Dólar australiano","AUD",36,{"$f":"IFERROR(INDEX(Currency[CcyMnrUnts],MATCH(Divisas[[#This Row],[Número]],Currency[CcyNbr],0)),2)","v":2}]
["NEPAL","Rupia nepalí","NPR",524,{"$f":"IFERROR(INDEX(Currency[CcyMnrUnts],MATCH(Divisas[[#This Row],[Número]],Currency[CcyNbr],0)),2)","v":2}]
["NICARAGUA","Córdoba oro","NIO",558,{"$f":"IFERROR(INDEX(Currency[CcyMnrUnts],MATCH(Divisas[[#This Row],[Número]],Currency[CcyNbr],0)),2)","v":2}]
["NIGERIA","Naira","NGN",566,{"$f":"IFERROR(INDEX(Currency[CcyMnrUnts],MATCH(Divisas[[#This Row],[Número]],Currency[CcyNbr],0)),2)","v":2}]
["NIGERIA","Franco CFA de África Occidental","XOF",952,{"$f":"IFERROR(INDEX(Currency[CcyMnrUnts],MATCH(Divisas[[#This Row],[Número]],Currency[CcyNbr],0)),2)","v":0}]
["NIUE","Dólar neozelandés","NZD",554,{"$f":"IFERROR(INDEX(Currency[CcyMnrUnts],MATCH(Divisas[[#This Row],[Número]],Currency[CcyNbr],0)),2)","v":2}]
["NORUEGA","Corona noruega","NOK",578,{"$f":"IFERROR(INDEX(Currency[CcyMnrUnts],MATCH(Divisas[[#This Row],[Número]],Currency[CcyNbr],0)),2)","v":2}]
["NUEVA CALEDONIA","Franco CFP","XPF",953,{"$f":"IFERROR(INDEX(Currency[CcyMnrUnts],MATCH(Divisas[[#This Row],[Número]],Currency[CcyNbr],0)),2)","v":0}]
["NUEVA ZELANDA","Dólar neozelandés","NZD",554,{"$f":"IFERROR(INDEX(Currency[CcyMnrUnts],MATCH(Divisas[[#This Row],[Número]],Currency[CcyNbr],0)),2)","v":2}]
["OMÁN","Rial omaní","OMR",512,{"$f":"IFERROR(INDEX(Currency[CcyMnrUnts],MATCH(Divisas[[#This Row],[Número]],Currency[CcyNbr],0)),2)","v":3}]
["PAISES MIEMBROS DEL BANCO AFRICANO DE DESARROLLO","BAD UNIDAD DE CUENTAS","XUA",965,{"$f":"IFERROR(INDEX(Currency[CcyMnrUnts],MATCH(Divisas[[#This Row],[Número]],Currency[CcyNbr],0)),2)","v":0}]
["PAKISTÁN","Rupia pakistaní","PKR",586,{"$f":"IFERROR(INDEX(Currency[CcyMnrUnts],MATCH(Divisas[[#This Row],[Número]],Currency[CcyNbr],0)),2)","v":2}]
["PALAU","Dólar estadounidense","USD",840,{"$f":"IFERROR(INDEX(Currency[CcyMnrUnts],MATCH(Divisas[[#This Row],[Número]],Currency[CcyNbr],0)),2)","v":2}]
["PANAMÁ","Dólar estadounidense","USD",840,{"$f":"IFERROR(INDEX(Currency[CcyMnrUnts],MATCH(Divisas[[#This Row],[Número]],Currency[CcyNbr],0)),2)","v":2}]
["PANAMÁ","Balboa","PAB",590,{"$f":"IFERROR(INDEX(Currency[CcyMnrUnts],MATCH(Divisas[[#This Row],[Número]],Currency[CcyNbr],0)),2)","v":2}]
["PAPÚA NUEVA GUINEA","Kina","PGK",598,{"$f":"IFERROR(INDEX(Currency[CcyMnrUnts],MATCH(Divisas[[#This Row],[Número]],Currency[CcyNbr],0)),2)","v":2}]
["PARAGUAY","Guaraní","PYG",600,{"$f":"IFERROR(INDEX(Currency[CcyMnrUnts],MATCH(Divisas[[#This Row],[Número]],Currency[CcyNbr],0)),2)","v":0}]
["PERU","Nuevo Sol","PEN",604,{"$f":"IFERROR(INDEX(Currency[CcyMnrUnts],MATCH(Divisas[[#This Row],[Número]],Currency[CcyNbr],0)),2)","v":2}]
["PITCAIRN","Dólar neozelandés","NZD",554,{"$f":"IFERROR(INDEX(Currency[CcyMnrUnts],MATCH(Divisas[[#This Row],[Número]],Currency[CcyNbr],0)),2)","v":2}]
["POLINESIA FRANCESA","Franco CFP","XPF",953,{"$f":"IFERROR(INDEX(Currency[CcyMnrUnts],MATCH(Divisas[[#This Row],[Número]],Currency[CcyNbr],0)),2)","v":0}]
["POLONIA","Zloty","PLN",985,{"$f":"IFERROR(INDEX(Currency[CcyMnrUnts],MATCH(Divisas[[#This Row],[Número]],Currency[CcyNbr],0)),2)","v":2}]
["PORTUGAL","Euro","EUR",978,{"$f":"IFERROR(INDEX(Currency[CcyMnrUnts],MATCH(Divisas[[#This Row],[Número]],Currency[CcyNbr],0)),2)","v":2}]
["PUERTO RICO","Dólar estadounidense","USD",840,{"$f":"IFERROR(INDEX(Currency[CcyMnrUnts],MATCH(Divisas[[#This Row],[Número]],Currency[CcyNbr],0)),2)","v":2}]
["QATAR","Riyal catarí","QAR",634,{"$f":"IFERROR(INDEX(Currency[CcyMnrUnts],MATCH(Divisas[[#This Row],[Número]],Currency[CcyNbr],0)),2)","v":2}]
["REINO UNIDO DE GRAN BRETAÑA E IRLANDA DEL NORTE","Libra esterlina","GBP",826,{"$f":"IFERROR(INDEX(Currency[CcyMnrUnts],MATCH(Divisas[[#This Row],[Número]],Currency[CcyNbr],0)),2)","v":2}]
["REPUBLICA DEMOCRÁTICA POPULAR LAO","Kip laosiano","LAK",418,{"$f":"IFERROR(INDEX(Currency[CcyMnrUnts],MATCH(Divisas[[#This Row],[Número]],Currency[CcyNbr],0)),2)","v":2}]
["REPÚBLICA BOLIVARIANA DE VENEZUELA","Bolívar","VEF",937,{"$f":"IFERROR(INDEX(Currency[CcyMnrUnts],MATCH(Divisas[[#This Row],[Número]],Currency[CcyNbr],0)),2)","v":2}]
["REPÚBLICA CENTROAFRICANA (LA)","Franco CFA de África Central","XAF",950,{"$f":"IFERROR(INDEX(Currency[CcyMnrUnts],MATCH(Divisas[[#This Row],[Número]],Currency[CcyNbr],0)),2)","v":0}]
["REPÚBLICA CHECA","Czech Koruna","CZK",203,{"$f":"IFERROR(INDEX(Currency[CcyMnrUnts],MATCH(Divisas[[#This Row],[Número]],Currency[CcyNbr],0)),2)","v":2}]
["REPÚBLICA DE COREA DEL SUR","Won","KRW",410,{"$f":"IFERROR(INDEX(Currency[CcyMnrUnts],MATCH(Divisas[[#This Row],[Número]],Currency[CcyNbr],0)),2)","v":0}]
["REPÚBLICA DE MOLDAVIA","Leu Moldavo","MDL",498,{"$f":"IFERROR(INDEX(Currency[CcyMnrUnts],MATCH(Divisas[[#This Row],[Número]],Currency[CcyNbr],0)),2)","v":2}]
["REPÚBLICA DEMOCRATICA DE COREA DEL NORTE","Won norcoreano","KPW",408,{"$f":"IFERROR(INDEX(Currency[CcyMnrUnts],MATCH(Divisas[[#This Row],[Número]],Currency[CcyNbr],0)),2)","v":2}]
["REPÚBLICA DOMINICANA","Peso dominicano","DOP",214,{"$f":"IFERROR(INDEX(Currency[CcyMnrUnts],MATCH(Divisas[[#This Row],[Número]],Currency[CcyNbr],0)),2)","v":2}]
["REPÚBLICA ISLAMICA DE IRÁN","Rial iraní","IRR",364,{"$f":"IFERROR(INDEX(Currency[CcyMnrUnts],MATCH(Divisas[[#This Row],[Número]],Currency[CcyNbr],0)),2)","v":2}]
["REPÚBLICA UNIDA DE TANZANIA","Chelín tanzano","TZS",834,{"$f":"IFERROR(INDEX(Currency[CcyMnrUnts],MATCH(Divisas[[#This Row],[Número]],Currency[CcyNbr],0)),2)","v":2}]
["REPÚBLICA ÁRABE SIRIA","Libra siria","SYP",760,{"$f":"IFERROR(INDEX(Currency[CcyMnrUnts],MATCH(Divisas[[#This Row],[Número]],Currency[CcyNbr],0)),2)","v":2}]
["REUNIÓN","Euro","EUR",978,{"$f":"IFERROR(INDEX(Currency[CcyMnrUnts],MATCH(Divisas[[#This Row],[Número]],Currency[CcyNbr],0)),2)","v":2}]
["RUANDA","Franco ruandés","RWF",646,{"$f":"IFERROR(INDEX(Currency[CcyMnrUnts],MATCH(Divisas[[#This Row],[Número]],Currency[CcyNbr],0)),2)","v":0}]
["RUMANIA","Leu rumano","RON",946,{"$f":"IFERROR(INDEX(Currency[CcyMnrUnts],MATCH(Divisas[[#This Row],[Número]],Currency[CcyNbr],0)),2)","v":2}]
["RUSIA","Rublo ruso","RUB",643,{"$f":"IFERROR(INDEX(Currency[CcyMnrUnts],MATCH(Divisas[[#This Row],[Número]],Currency[CcyNbr],0)),2)","v":2}]
["SAHARA OCCIDENTAL","Dirham marroquí","MAD",504,{"$f":"IFERROR(INDEX(Currency[CcyMnrUnts],MATCH(Divisas[[#This Row],[Número]],Currency[CcyNbr],0)),2)","v":2}]
["SAMOA","Tala","WST",882,{"$f":"IFERROR(INDEX(Currency[CcyMnrUnts],MATCH(Divisas[[#This Row],[Número]],Currency[CcyNbr],0)),2)","v":2}]
["SAMOA AMERICANA","Dólar estadounidense","USD",840,{"$f":"IFERROR(INDEX(Currency[CcyMnrUnts],MATCH(Divisas[[#This Row],[Número]],Currency[CcyNbr],0)),2)","v":2}]
["SAN BARTOLOMÉ","Euro","EUR",978,{"$f":"IFERROR(INDEX(Currency[CcyMnrUnts],MATCH(Divisas[[#This Row],[Número]],Currency[CcyNbr],0)),2)","v":2}]
["SAN CRISTÓBAL Y NIEVES","Dólar del Caribe oriental","XCD",951,{"$f":"IFERROR(INDEX(Currency[CcyMnrUnts],MATCH(Divisas[[#This Row],[Número]],Currency[CcyNbr],0)),2)","v":2}]
["SAN MARINO","Euro","EUR",978,{"$f":"IFERROR(INDEX(Currency[CcyMnrUnts],MATCH(Divisas[[#This Row],[Número]],Currency[CcyNbr],0)),2)","v":2}]
["SAN MARTÍN","Euro","EUR",978,{"$f":"IFERROR(INDEX(Currency[CcyMnrUnts],MATCH(Divisas[[#This Row],[Número]],Currency[CcyNbr],0)),2)","v":2}]
["SAN MARTÍN (PARTE HOLANDESA)","Florín holandés","ANG",532,{"$f":"IFERROR(INDEX(Currency[CcyMnrUnts],MATCH(Divisas[[#This Row],[Número]],Currency[CcyNbr],0)),2)","v":2}]
["SAN PEDRO Y MIQUELÓN","Euro","EUR",978,{"$f":"IFERROR(INDEX(Currency[CcyMnrUnts],MATCH(Divisas[[#This Row],[Número]],Currency[CcyNbr],0)),2)","v":2}]
["SAN TOMÉ Y PRÍNCIPE","Dobra","STD",678,{"$f":"IFERROR(INDEX(Currency[CcyMnrUnts],MATCH(Divisas[[#This Row],[Número]],Currency[CcyNbr],0)),2)","v":2}]
["SAN VICENTE Y LAS GRANADINAS","Dólar del Caribe oriental","XCD",951,{"$f":"IFERROR(INDEX(Currency[CcyMnrUnts],MATCH(Divisas[[#This Row],[Número]],Currency[CcyNbr],0)),2)","v":2}]
["SANTA HELENA ASCENCIÓN Y TRISTÁN DE ACUÑA","Libra de Santa Helena","SHP",654,{"$f":"IFERROR(INDEX(Currency[CcyMnrUnts],MATCH(Divisas[[#This Row],[Número]],Currency[CcyNbr],0)),2)","v":2}]
["SANTA LUCÍA","Dólar del Caribe oriental","XCD",951,{"$f":"IFERROR(INDEX(Currency[CcyMnrUnts],MATCH(Divisas[[#This Row],[Número]],Currency[CcyNbr],0)),2)","v":2}]
["SANTA SEDE","Euro","EUR",978,{"$f":"IFERROR(INDEX(Currency[CcyMnrUnts],MATCH(Divisas[[#This Row],[Número]],Currency[CcyNbr],0)),2)","v":2}]
["SENEGAL","Franco CFA de África Occidental","XOF",952,{"$f":"IFERROR(INDEX(Currency[CcyMnrUnts],MATCH(Divisas[[#This Row],[Número]],Currency[CcyNbr],0)),2)","v":0}]
["SERBIA","Dinar serbio","RSD",941,{"$f":"IFERROR(INDEX(Currency[CcyMnrUnts],MATCH(Divisas[[#This Row],[Número]],Currency[CcyNbr],0)),2)","v":2}]
["SEYCHELLES","Rupia de Seychelles","SCR",690,{"$f":"IFERROR(INDEX(Currency[CcyMnrUnts],MATCH(Divisas[[#This Row],[Número]],Currency[CcyNbr],0)),2)","v":2}]
["SIERRA LEONA","Leone","SLL",694,{"$f":"IFERROR(INDEX(Currency[CcyMnrUnts],MATCH(Divisas[[#This Row],[Número]],Currency[CcyNbr],0)),2)","v":2}]
["SINGAPUR","Dólar de Singapur","SGD",702,{"$f":"IFERROR(INDEX(Currency[CcyMnrUnts],MATCH(Divisas[[#This Row],[Número]],Currency[CcyNbr],0)),2)","v":2}]
["SISTEMA UNITARIO DE COMPENSACION REGIONAL DE PAGOS \"SUCRE\"","Sucre","XSU",994,{"$f":"IFERROR(INDEX(Currency[CcyMnrUnts],MATCH(Divisas[[#This Row],[Número]],Currency[CcyNbr],0)),2)","v":0}]
["SOMALIA","Chelín somalí","SOS",706,{"$f":"IFERROR(INDEX(Currency[CcyMnrUnts],MATCH(Divisas[[#This Row],[Número]],Currency[CcyNbr],0)),2)","v":2}]
["SRI LANKA","Rupia de Sri Lanka","LKR",144,{"$f":"IFERROR(INDEX(Currency[CcyMnrUnts],MATCH(Divisas[[#This Row],[Número]],Currency[CcyNbr],0)),2)","v":2}]
["SUAZILANDIA","Lilangeni","SZL",748,{"$f":"IFERROR(INDEX(Currency[CcyMnrUnts],MATCH(Divisas[[#This Row],[Número]],Currency[CcyNbr],0)),2)","v":2}]
["SUDÁFRICA","Rand","ZAR",710,{"$f":"IFERROR(INDEX(Currency[CcyMnrUnts],MATCH(Divisas[[#This Row],[Número]],Currency[CcyNbr],0)),2)","v":2}]
["SUDÁN","Libra sudanesa","SDG",938,{"$f":"IFERROR(INDEX(Currency[CcyMnrUnts],MATCH(Divisas[[#This Row],[Número]],Currency[CcyNbr],0)),2)","v":2}]
["SUDÁN DEL SUR","Libra sursudanesa","SSP",728,{"$f":"IFERROR(INDEX(Currency[CcyMnrUnts],MATCH(Divisas[[#This Row],[Número]],Currency[CcyNbr],0)),2)","v":2}]
["SUECIA","Corona sueca","SEK",752,{"$f":"IFERROR(INDEX(Currency[CcyMnrUnts],MATCH(Divisas[[#This Row],[Número]],Currency[CcyNbr],0)),2)","v":2}]
["SUIZA","Franco WIR","CHW",948,{"$f":"IFERROR(INDEX(Currency[CcyMnrUnts],MATCH(Divisas[[#This Row],[Número]],Currency[CcyNbr],0)),2)","v":2}]
["SUIZA","WIR Euro","CHE",947,{"$f":"IFERROR(INDEX(Currency[CcyMnrUnts],MATCH(Divisas[[#This Row],[Número]],Currency[CcyNbr],0)),2)","v":2}]
["SUIZA","Franco suizo","CHF",756,{"$f":"IFERROR(INDEX(Currency[CcyMnrUnts],MATCH(Divisas[[#This Row],[Número]],Currency[CcyNbr],0)),2)","v":2}]
["SURINAM","Dólar de Surinam","SRD",968,{"$f":"IFERROR(INDEX(Currency[CcyMnrUnts],MATCH(Divisas[[#This Row],[Número]],Currency[CcyNbr],0)),2)","v":2}]
["TAILANDIA","Baht","THB",764,{"$f":"IFERROR(INDEX(Currency[CcyMnrUnts],MATCH(Divisas[[#This Row],[Número]],Currency[CcyNbr],0)),2)","v":2}]
["TAIWÁN (PROVINCIA DE CHINA)","Nuevo dólar de Taiwán","TWD",901,{"$f":"IFERROR(INDEX(Currency[CcyMnrUnts],MATCH(Divisas[[#This Row],[Número]],Currency[CcyNbr],0)),2)","v":2}]
["TAJIKISTÁN","Somoni","TJS",972,{"$f":"IFERROR(INDEX(Currency[CcyMnrUnts],MATCH(Divisas[[#This Row],[Número]],Currency[CcyNbr],0)),2)","v":2}]
["TERRITORIO BRITÁNICO DEL OCÉANO ÍNDICO","Dólar estadounidense","USD",840,{"$f":"IFERROR(INDEX(Currency[CcyMnrUnts],MATCH(Divisas[[#This Row],[Número]],Currency[CcyNbr],0)),2)","v":2}]
["TERRITORIOS AUSTRALES FRANCESES","Euro","EUR",978,{"$f":"IFERROR(INDEX(Currency[CcyMnrUnts],MATCH(Divisas[[#This Row],[Número]],Currency[CcyNbr],0)),2)","v":2}]
["TIMOR ORIENTAL","Dólar estadounidense","USD",840,{"$f":"IFERROR(INDEX(Currency[CcyMnrUnts],MATCH(Divisas[[#This Row],[Número]],Currency[CcyNbr],0)),2)","v":2}]
["TOGO","Franco CFA de África Occidental","XOF",952,{"$f":"IFERROR(INDEX(Currency[CcyMnrUnts],MATCH(Divisas[[#This Row],[Número]],Currency[CcyNbr],0)),2)","v":0}]
["TOKELAU","Dólar neozelandés","NZD",554,{"$f":"IFERROR(INDEX(Currency[CcyMnrUnts],MATCH(Divisas[[#This Row],[Número]],Currency[CcyNbr],0)),2)","v":2}]
["TONGA","Pa’anga","TOP",776,{"$f":"IFERROR(INDEX(Currency[CcyMnrUnts],MATCH(Divisas[[#This Row],[Número]],Currency[CcyNbr],0)),2)","v":2}]
["TRINIDAD Y TOBAGO","Dólar de Trinidad y Tobago","TTD",780,{"$f":"IFERROR(INDEX(Currency[CcyMnrUnts],MATCH(Divisas[[#This Row],[Número]],Currency[CcyNbr],0)),2)","v":2}]
["TURMENISTÁN","Manat turcomano","TMT",934,{"$f":"IFERROR(INDEX(Currency[CcyMnrUnts],MATCH(Divisas[[#This Row],[Número]],Currency[CcyNbr],0)),2)","v":2}]
["TURQUÍA","Lira turca","TRY",949,{"$f":"IFERROR(INDEX(Currency[CcyMnrUnts],MATCH(Divisas[[#This Row],[Número]],Currency[CcyNbr],0)),2)","v":2}]
["TUVALU","Dólar tuvaluano","AUD",36,{"$f":"IFERROR(INDEX(Currency[CcyMnrUnts],MATCH(Divisas[[#This Row],[Número]],Currency[CcyNbr],0)),2)","v":2}]
["TÚNEZ","Dinar tunecino","TND",788,{"$f":"IFERROR(INDEX(Currency[CcyMnrUnts],MATCH(Divisas[[#This Row],[Número]],Currency[CcyNbr],0)),2)","v":3}]
["UGANDA","Chelín ugandés","UGX",800,{"$f":"IFERROR(INDEX(Currency[CcyMnrUnts],MATCH(Divisas[[#This Row],[Número]],Currency[CcyNbr],0)),2)","v":0}]
["UKRANIA","Grivnia","UAH",980,{"$f":"IFERROR(INDEX(Currency[CcyMnrUnts],MATCH(Divisas[[#This Row],[Número]],Currency[CcyNbr],0)),2)","v":2}]
["UNIÓN EUROPEA","Euro","EUR",978,{"$f":"IFERROR(INDEX(Currency[CcyMnrUnts],MATCH(Divisas[[#This Row],[Número]],Currency[CcyNbr],0)),2)","v":2}]
["URUGUAY","Peso uruguayo","UYU",858,{"$f":"IFERROR(INDEX(Currency[CcyMnrUnts],MATCH(Divisas[[#This Row],[Número]],Currency[CcyNbr],0)),2)","v":2}]
["URUGUAY","Peso uruguayo en unidades indexadas (URUIURUI)","UYI",940,{"$f":"IFERROR(INDEX(Currency[CcyMnrUnts],MATCH(Divisas[[#This Row],[Número]],Currency[CcyNbr],0)),2)","v":0}]
["UZBEKISTÁN","Som uzbeko","UZS",860,{"$f":"IFERROR(INDEX(Currency[CcyMnrUnts],MATCH(Divisas[[#This Row],[Número]],Currency[CcyNbr],0)),2)","v":2}]
["VANUATU","Vatu","VUV",548,{"$f":"IFERROR(INDEX(Currency[CcyMnrUnts],MATCH(Divisas[[#This Row],[Número]],Currency[CcyNbr],0)),2)","v":0}]
["VIETNAM","Dong","VND",704,{"$f":"IFERROR(INDEX(Currency[CcyMnrUnts],MATCH(Divisas[[#This Row],[Número]],Currency[CcyNbr],0)),2)","v":0}]
["WALLIS Y FUTUNA","Franco CFP","XPF",953,{"$f":"IFERROR(INDEX(Currency[CcyMnrUnts],MATCH(Divisas[[#This Row],[Número]],Currency[CcyNbr],0)),2)","v":0}]
["YEMEN","Rial yemení","YER",886,{"$f":"IFERROR(INDEX(Currency[CcyMnrUnts],MATCH(Divisas[[#This Row],[Número]],Currency[CcyNbr],0)),2)","v":2}]
["YIBUTI","Franco yibutiano","DJF",262,{"$f":"IFERROR(INDEX(Currency[CcyMnrUnts],MATCH(Divisas[[#This Row],[Número]],Currency[CcyNbr],0)),2)","v":0}]
["ZAMBIA","Kwacha zambiano","ZMW",967,{"$f":"IFERROR(INDEX(Currency[CcyMnrUnts],MATCH(Divisas[[#This Row],[Número]],Currency[CcyNbr],0)),2)","v":2}]
["ZIMBABUE","Dólar zimbabuense","ZWL",932,{"$f":"IFERROR(INDEX(Currency[CcyMnrUnts],MATCH(Divisas[[#This Row],[Número]],Currency[CcyNbr],0)),2)","v":2}]

{"sheet":"Currency","index":2,"n_rows":282,"n_cols":4,"rows_kept":282,"cut":false,"hidden":false,"merged":[]}
["CtryNm","Ccy","CcyNbr","CcyMnrUnts"]
["AFGHANISTAN","AFN",971,2]
["ÅLAND ISLANDS","EUR",978,2]
["ALBANIA","ALL",8,2]
["ALGERIA","DZD",12,2]
["AMERICAN SAMOA","USD",840,2]
["ANDORRA","EUR",978,2]
["ANGOLA","AOA",973,2]
["ANGUILLA","XCD",951,2]
["ANTARCTICA"]
["ANTIGUA AND BARBUDA","XCD",951,2]
["ARGENTINA","ARS",32,2]
["ARMENIA","AMD",51,2]
["ARUBA","AWG",533,2]
["AUSTRALIA","AUD",36,2]
["AUSTRIA","EUR",978,2]
["AZERBAIJAN","AZN",944,2]
["BAHAMAS (THE)","BSD",44,2]
["BAHRAIN","BHD",48,3]
["BANGLADESH","BDT",50,2]
["BARBADOS","BBD",52,2]
["BELARUS","BYN",933,2]
["BELGIUM","EUR",978,2]
["BELIZE","BZD",84,2]
["BENIN","XOF",952,0]
["BERMUDA","BMD",60,2]
["BHUTAN","INR",356,2]
["BHUTAN","BTN",64,2]
["BOLIVIA (PLURINATIONAL STATE OF)","BOB",68,2]
["BOLIVIA (PLURINATIONAL STATE OF)","BOV",984,2]
["BONAIRE, SINT EUSTATIUS AND SABA","USD",840,2]
["BOSNIA AND HERZEGOVINA","BAM",977,2]
["BOTSWANA","BWP",72,2]
["BOUVET ISLAND","NOK",578,2]
["BRAZIL","BRL",986,2]
["BRITISH INDIAN OCEAN TERRITORY (THE)","USD",840,2]
["BRUNEI DARUSSALAM","BND",96,2]
["BULGARIA","BGN",975,2]
["BURKINA FASO","XOF",952,0]
["BURUNDI","BIF",108,0]
["CABO VERDE","CVE",132,2]
["CAMBODIA","KHR",116,2]
["CAMEROON","XAF",950,0]
["CANADA","CAD",124,2]
["CAYMAN ISLANDS (THE)","KYD",136,2]
["CENTRAL AFRICAN REPUBLIC (THE)","XAF",950,0]
["CHAD","XAF",950,0]
["CHILE","CLP",152,0]
["CHILE","CLF",990,4]
["CHINA","CNY",156,2]
["CHRISTMAS ISLAND","AUD",36,2]
["COCOS (KEELING) ISLANDS (THE)","AUD",36,2]
["COLOMBIA","COP",170,2]
["COLOMBIA","COU",970,2]
["COMOROS (THE)","KMF",174,0]
["CONGO (THE DEMOCRATIC REPUBLIC OF THE)","CDF",976,2]
["CONGO (THE)","XAF",950,0]
["COOK ISLANDS (THE)","NZD",554,2]
["COSTA RICA","CRC",188,2]
["CÔTE D'IVOIRE","XOF",952,0]
["CROATIA","HRK",191,2]
["CUBA","CUP",192,2]
["CUBA","CUC",931,2]
["CURAÇAO","ANG",532,2]
["CYPRUS","EUR",978,2]
["CZECHIA","CZK",203,2]
["DENMARK","DKK",208,2]
["DJIBOUTI","DJF",262,0]
["DOMINICA","XCD",951,2]
["DOMINICAN REPUBLIC (THE)","DOP",214,2]
["ECUADOR","USD",840,2]
["EGYPT","EGP",818,2]
["EL SALVADOR","SVC",222,2]
["EL SALVADOR","USD",840,2]
["EQUATORIAL GUINEA","XAF",950,0]
["ERITREA","ERN",232,2]
["ESTONIA","EUR",978,2]
["ESWATINI","SZL",748,2]
["ETHIOPIA","ETB",230,2]
["EUROPEAN UNION","EUR",978,2]
["FALKLAND ISLANDS (THE) [MALVINAS]","FKP",238,2]
["FAROE ISLANDS (THE)","DKK",208,2]
["FIJI","FJD",242,2]
["FINLAND","EUR",978,2]
["FRANCE","EUR",978,2]
["FRENCH GUIANA","EUR",978,2]
["FRENCH POLYNESIA","XPF",953,0]
["FRENCH SOUTHERN TERRITORIES (THE)","EUR",978,2]
["GABON","XAF",950,0]
["GAMBIA (THE)","GMD",270,2]
["GEORGIA","GEL",981,2]
["GERMANY","EUR",978,2]
["GHANA","GHS",936,2]
["GIBRALTAR","GIP",292,2]
["GREECE","EUR",978,2]
["GREENLAND","DKK",208,2]
["GRENADA","XCD",951,2]
["GUADELOUPE","EUR",978,2]
["GUAM","USD",840,2]
["GUATEMALA","GTQ",320,2]
["GUERNSEY","GBP",826,2]
["GUINEA","GNF",324,0]
["GUINEA-BISSAU","XOF",952,0]
["GUYANA","GYD",328,2]
["HAITI","HTG",332,2]
["HAITI","USD",840,2]
["HEARD ISLAND AND McDONALD ISLANDS","AUD",36,2]
["HOLY SEE (THE)","EUR",978,2]
["HONDURAS","HNL",340,2]
["HONG KONG","HKD",344,2]
["HUNGARY","HUF",348,2]
["ICELAND","ISK",352,0]
["INDIA","INR",356,2]
["INDONESIA","IDR",360,2]
["INTERNATIONAL MONETARY FUND (IMF) ","XDR",960]
["IRAN (ISLAMIC REPUBLIC OF)","IRR",364,2]
["IRAQ","IQD",368,3]
["IRELAND","EUR",978,2]
["ISLE OF MAN","GBP",826,2]
["ISRAEL","ILS",376,2]
["ITALY","EUR",978,2]
["JAMAICA","JMD",388,2]
["JAPAN","JPY",392,0]
["JERSEY","GBP",826,2]
["JORDAN","JOD",400,3]
["KAZAKHSTAN","KZT",398,2]
["KENYA","KES",404,2]
["KIRIBATI","AUD",36,2]
["KOREA (THE DEMOCRATIC PEOPLE’S REPUBLIC OF)","KPW",408,2]
["KOREA (THE REPUBLIC OF)","KRW",410,0]
["KUWAIT","KWD",414,3]
["KYRGYZSTAN","KGS",417,2]
["LAO PEOPLE’S DEMOCRATIC REPUBLIC (THE)","LAK",418,2]
["LATVIA","EUR",978,2]
["LEBANON","LBP",422,2]
["LESOTHO","LSL",426,2]
["LESOTHO","ZAR",710,2]
["LIBERIA","LRD",430,2]
["LIBYA","LYD",434,3]
["LIECHTENSTEIN","CHF",756,2]
["LITHUANIA","EUR",978,2]
["LUXEMBOURG","EUR",978,2]
["MACAO","MOP",446,2]
["NORTH MACEDONIA","MKD",807,2]
["MADAGASCAR","MGA",969,2]
["MALAWI","MWK",454,2]
["MALAYSIA","MYR",458,2]
["MALDIVES","MVR",462,2]
["MALI","XOF",952,0]
["MALTA","EUR",978,2]
["MARSHALL ISLANDS (THE)","USD",840,2]
["MARTINIQUE","EUR",978,2]
["MAURITANIA","MRU",929,2]
["MAURITIUS","MUR",480,2]
["MAYOTTE","EUR",978,2]
["MEMBER COUNTRIES OF THE AFRICAN DEVELOPMENT BANK GROUP","XUA",965]
["MEXICO","MXN",484,2]
["MEXICO","MXV",979,2]
["MICRONESIA (FEDERATED STATES OF)","USD",840,2]
["MOLDOVA (THE REPUBLIC OF)","MDL",498,2]
["MONACO","EUR",978,2]
["MONGOLIA","MNT",496,2]
["MONTENEGRO","EUR",978,2]
["MONTSERRAT","XCD",951,2]
["MOROCCO","MAD",504,2]
["MOZAMBIQUE","MZN",943,2]
["MYANMAR","MMK",104,2]
["NAMIBIA","NAD",516,2]
["NAMIBIA","ZAR",710,2]
["NAURU","AUD",36,2]
["NEPAL","NPR",524,2]
["NETHERLANDS (THE)","EUR",978,2]
["NEW CALEDONIA","XPF",953,0]
["NEW ZEALAND","NZD",554,2]
["NICARAGUA","NIO",558,2]
["NIGER (THE)","XOF",952,0]
["NIGERIA","NGN",566,2]
["NIUE","NZD",554,2]
["NORFOLK ISLAND","AUD",36,2]
["NORTHERN MARIANA ISLANDS (THE)","USD",840,2]
["NORWAY","NOK",578,2]
["OMAN","OMR",512,3]
["PAKISTAN","PKR",586,2]
["PALAU","USD",840,2]
["PALESTINE, STATE OF"]
["PANAMA","PAB",590,2]
["PANAMA","USD",840,2]
["PAPUA NEW GUINEA","PGK",598,2]
["PARAGUAY","PYG",600,0]
["PERU","PEN",604,2]
["PHILIPPINES (THE)","PHP",608,2]
["PITCAIRN","NZD",554,2]
["POLAND","PLN",985,2]
["PORTUGAL","EUR",978,2]
["PUERTO RICO","USD",840,2]
["QATAR","QAR",634,2]
["RÉUNION","EUR",978,2]
["ROMANIA","RON",946,2]
["RUSSIAN FEDERATION (THE)","RUB",643,2]
["RWANDA","RWF",646,0]
["SAINT BARTHÉLEMY","EUR",978,2]
["SAINT HELENA, ASCENSION AND TRISTAN DA CUNHA","SHP",654,2]
["SAINT KITTS AND NEVIS","XCD",951,2]
["SAINT LUCIA","XCD",951,2]
["SAINT MARTIN (FRENCH PART)","EUR",978,2]
["SAINT PIERRE AND MIQUELON","EUR",978,2]
["SAINT VINCENT AND THE GRENADINES","XCD",951,2]
["SAMOA","WST",882,2]
["SAN MARINO","EUR",978,2]
["SAO TOME AND PRINCIPE","STN",930,2]
["SAUDI ARABIA","SAR",682,2]
["SENEGAL","XOF",952,0]
["SERBIA","RSD",941,2]
["SEYCHELLES","SCR",690,2]
["SIERRA LEONE","SLL",694,2]
["SIERRA LEONE","SLE",925,2]
["SINGAPORE","SGD",702,2]
["SINT MAARTEN (DUTCH PART)","ANG",532,2]
["SISTEMA UNITARIO DE COMPENSACION REGIONAL DE PAGOS \"SUCRE\"","XSU",994]
["SLOVAKIA","EUR",978,2]
["SLOVENIA","EUR",978,2]
["SOLOMON ISLANDS","SBD",90,2]
["SOMALIA","SOS",706,2]
["SOUTH AFRICA","ZAR",710,2]
["SOUTH GEORGIA AND THE SOUTH SANDWICH ISLANDS"]
["SOUTH SUDAN","SSP",728,2]
["SPAIN","EUR",978,2]
["SRI LANKA","LKR",144,2]
["SUDAN (THE)","SDG",938,2]
["SURINAME","SRD",968,2]
["SVALBARD AND JAN MAYEN","NOK",578,2]
["SWEDEN","SEK",752,2]
["SWITZERLAND","CHF",756,2]
["SWITZERLAND","CHE",947,2]
["SWITZERLAND","CHW",948,2]
["SYRIAN ARAB REPUBLIC","SYP",760,2]
["TAIWAN (PROVINCE OF CHINA)","TWD",901,2]
["TAJIKISTAN","TJS",972,2]
["TANZANIA, UNITED REPUBLIC OF","TZS",834,2]
["THAILAND","THB",764,2]
["TIMOR-LESTE","USD",840,2]
["TOGO","XOF",952,0]
["TOKELAU","NZD",554,2]
["TONGA","TOP",776,2]
["TRINIDAD AND TOBAGO","TTD",780,2]
["TUNISIA","TND",788,3]
["TURKEY","TRY",949,2]
["TURKMENISTAN","TMT",934,2]
["TURKS AND CAICOS ISLANDS (THE)","USD",840,2]
["TUVALU","AUD",36,2]
["UGANDA","UGX",800,0]
["UKRAINE","UAH",980,2]
["UNITED ARAB EMIRATES (THE)","AED",784,2]
["UNITED KINGDOM OF GREAT BRITAIN AND NORTHERN IRELAND (THE)","GBP",826,2]
["UNITED STATES MINOR OUTLYING ISLANDS (THE)","USD",840,2]
["UNITED STATES OF AMERICA (THE)","USD",840,2]
["UNITED STATES OF AMERICA (THE)","USN",997,2]
["URUGUAY","UYU",858,2]
["URUGUAY","UYI",940,0]
["URUGUAY","UYW",927,4]
["UZBEKISTAN","UZS",860,2]
["VANUATU","VUV",548,0]
["VENEZUELA (BOLIVARIAN REPUBLIC OF)","VES",928,2]
["VENEZUELA (BOLIVARIAN REPUBLIC OF)","VED",926,2]
["VIET NAM","VND",704,0]
["VIRGIN ISLANDS (BRITISH)","USD",840,2]
["VIRGIN ISLANDS (U.S.)","USD",840,2]
["WALLIS AND FUTUNA","XPF",953,0]
["WESTERN SAHARA","MAD",504,2]
["YEMEN","YER",886,2]
["ZAMBIA","ZMW",967,2]
["ZIMBABWE","ZWL",932,2]
["ZZ01_Bond Markets Unit European_EURCO","XBA",955]
["ZZ02_Bond Markets Unit European_EMU-6","XBB",956]
["ZZ03_Bond Markets Unit European_EUA-9","XBC",957]
["ZZ04_Bond Markets Unit European_EUA-17","XBD",958]
["ZZ06_Testing_Code","XTS",963]
["ZZ07_No_Currency","XXX",999]
["ZZ08_Gold","XAU",959]
["ZZ09_Palladium","XPD",964]
["ZZ10_Platinum","XPT",962]
["ZZ11_Silver","XAG",961]